fUSD/lending_fUSD_20260528
["ID","MTS","AMOUNT","RATE_DAILY","PERIOD"]
[423241452,1779976258000,-1000.0,0.00035616,10]
[423241463,1779976258000,-493.49232006,0.0003564,2]
[423241454,1779976258000,-1149.10169744,0.0003564,2]
[423241456,1779976258000,-594.93442456,0.0003564,2]
[423241457,1779976258000,-464.59046343,0.0003564,2]
[423241459,1779976258000,-555.51505004,0.0003564,2]
[423241458,1779976258000,-452.63792693,0.0003564,2]
[423241460,1779976258000,-310.35255644,0.0003564,2]
[423241465,1779976258000,-300.0,0.0003564,2]
[423241466,1779976258000,-1068.67230718,0.0003564,2]
[423241448,1779976258000,-1000.0,0.00035616,10]
[423241461,1779976258000,-1096.53053831,0.0003564,2]
[423241432,1779976258000,-1000.0,0.00035616,10]
[423241415,1779976258000,-500.0,0.00035616,2]
[423241435,1779976258000,-1000.0,0.00035616,10]
[423241416,1779976258000,-500.0,0.00035616,2]
[423241417,1779976258000,-500.0,0.00035616,2]
[423241419,1779976258000,-500.0,0.00035616,2]
[423241413,1779976258000,-500.0,0.00035616,2]
[423241414,1779976258000,-500.0,0.00035616,2]
[423241475,1779976258000,-301.07142141,0.0003564,2]
[423241420,1779976258000,-440.0559241,0.00035616,2]
[423241418,1779976258000,-500.0,0.00035616,2]
[423241412,1779976258000,-500.0,0.00035616,2]
[423241421,1779976258000,-150.0,0.00035616,2]
[423241424,1779976258000,-1000.0,0.00035616,10]
[423241425,1779976258000,-1000.0,0.00035616,10]
[423241422,1779976258000,-1000.0,0.00035616,10]
[423241426,1779976258000,-1000.0,0.00035616,10]
[423241423,1779976258000,-1000.0,0.00035616,10]
[423241428,1779976258000,-1000.0,0.00035616,10]
[423241439,1779976258000,-1000.0,0.00035616,10]
[423241436,1779976258000,-1000.0,0.00035616,10]
[423241433,1779976258000,-1000.0,0.00035616,10]
[423241429,1779976258000,-1000.0,0.00035616,10]
[423241438,1779976258000,-1000.0,0.00035616,10]
[423241434,1779976258000,-1000.0,0.00035616,10]
[423241430,1779976258000,-1000.0,0.00035616,10]
[423241437,1779976258000,-1000.0,0.00035616,10]
[423241431,1779976258000,-1000.0,0.00035616,10]
[423241427,1779976258000,-1000.0,0.00035616,10]
[423241470,1779976258000,-301.06586081,0.0003564,2]
[423241455,1779976258000,-310.10057906,0.0003564,2]
[423241471,1779976258000,-493.53042869,0.0003564,2]
[423241496,1779976258000,-1264.24574848,0.0003564,2]
[423241502,1779976258000,-300.0,0.0003564,2]
[423241505,1779976258000,-456.26691008,0.0003564,2]
[423241504,1779976258000,-312.59543404,0.0003564,2]
[423241506,1779976258000,-1096.53053831,0.0003564,2]
[423241503,1779976258000,-497.37114688,0.0003564,2]
[423241513,1779976258000,-300.0,0.0003564,2]
[423241507,1779976258000,-401.6950361,0.0003564,2]
[423241511,1779976258000,-665.79669921,0.0003564,2]
[423241508,1779976258000,-369.16986688,0.0003564,2]
[423241512,1779976258000,-303.88527393,0.0003564,2]
[423241526,1779976258000,-301.06586081,0.0003564,2]
[423241497,1779976258000,-344.53139053,0.0003564,2]
[423241510,1779976258000,-300.0,0.0003564,2]
[423241514,1779976258000,-301.06586081,0.0003564,2]
[423241525,1779976258000,-300.0,0.0003564,2]
[423241520,1779976258000,-300.0,0.0003564,2]
[423241519,1779976258000,-1800.20391073,0.0003564,2]
[423241517,1779976258000,-865.81178355,0.0003564,2]
[423241516,1779976258000,-344.53139053,0.0003564,2]
[423241522,1779976258000,-605.44192367,0.0003564,2]
[423241523,1779976258000,-300.0,0.0003564,2]
[423241518,1779976258000,-1247.78668349,0.0003564,2]
[423241521,1779976258000,-1096.53053831,0.0003564,2]
[423241524,1779976258000,-300.0,0.0003564,2]
[423241469,1779976258000,-300.0,0.0003564,2]
[423241515,1779976258000,-1264.24574848,0.0003564,2]
[423241495,1779976258000,-301.06586081,0.0003564,2]
[423241509,1779976258000,-605.44192367,0.0003564,2]
[423241493,1779976258000,-302.2839583,0.0003564,2]
[423241467,1779976258000,-727.22668274,0.0003564,2]
[423241494,1779976258000,-300.0,0.0003564,2]
[423241468,1779976258000,-302.2839583,0.0003564,2]
[423241476,1779976258000,-865.81178355,0.0003564,2]
[423241474,1779976258000,-527.74435971,0.0003564,2]
[423241473,1779976258000,-344.53139053,0.0003564,2]
[423241472,1779976258000,-1264.24574848,0.0003564,2]
[423241483,1779976258000,-467.42449298,0.0003564,2]
[423241485,1779976258000,-310.35255644,0.0003564,2]
[423241487,1779976258000,-300.69741463,0.0003564,2]
[423241480,1779976258000,-1149.10169744,0.0003564,2]
[423241481,1779976258000,-310.10057906,0.0003564,2]
[423241484,1779976258000,-452.63792693,0.0003564,2]
[423241482,1779976258000,-594.93442456,0.0003564,2]
[423241479,1779976258000,-300.0,0.0003564,2]
[423241492,1779976258000,-727.22668274,0.0003564,2]
[423241491,1779976258000,-300.0,0.0003564,2]
[423241499,1779976258000,-865.81178355,0.0003564,2]
[423241501,1779976258000,-1800.20391073,0.0003564,2]
[423241500,1779976258000,-950.53639116,0.0003564,2]
[423241486,1779976258000,-1096.53053831,0.0003564,2]
[423241489,1779976258000,-493.49232006,0.0003564,2]
[423241490,1779976258000,-605.44192367,0.0003564,2]
[423241478,1779976258000,-1800.20391073,0.0003564,2]
[423241488,1779976258000,-300.0,0.0003564,2]
[423241477,1779976258000,-950.53639116,0.0003564,2]
[423241498,1779976258000,-729.7605813,0.0003564,2]
[423241569,1779976259000,-512.6216463,0.00035965,2]
[423241573,1779976259000,-250.0,0.00036,2]
[423241566,1779976259000,-512.6216463,0.00035904,2]
[423241567,1779976259000,-1640.37,0.00035955,30]
[423241564,1779976259000,-389.0,0.00035848,30]
[423241562,1779976259000,-169.0,0.00035844,30]
[423241561,1779976259000,-155.0,0.00035844,30]
[423241560,1779976259000,-1085.0,0.00035844,30]
[423241558,1779976259000,-221.0,0.00035791,30]
[423241556,1779976259000,-1376.0,0.00035791,30]
[423241571,1779976259000,-200.0,0.00036,120]
[423241565,1779976259000,-512.6216463,0.00035892,2]
[423241570,1779976259000,-150.0,0.0003598,7]
[423241580,1779976259000,-5000.0,0.00036112,10]
[423241568,1779976259000,-210.25,0.00035955,30]
[423241572,1779976259000,-494.59,0.00036,30]
[423241574,1779976259000,-800.0,0.00036,2]
[423241575,1779976259000,-2444.12,0.00036022,14]
[423241579,1779976259000,-577.88,0.000361,14]
[423241585,1779976259000,-1750.16819136,0.00036186,7]
[423241578,1779976259000,-151.0,0.00036097,14]
[423241586,1779976259000,-5000.0,0.00036206,10]
[423241583,1779976259000,-289.98,0.00036137,120]
[423241581,1779976259000,-2532.65,0.0003613,10]
[423241584,1779976259000,-3085.7,0.00036153,30]
[423241582,1779976259000,-512.6216463,0.00036133,2]
[423241587,1779976259000,-5000.0,0.00036208,10]
[423241576,1779976259000,-512.6216463,0.00036045,2]
[423241557,1779976259000,-156.0,0.00035791,30]
[423241538,1779976259000,-865.81178355,0.0003564,2]
[423241555,1779976259000,-418.0,0.00035791,30]
[423241577,1779976259000,-25000.0,0.00036093,10]
[423241531,1779976259000,-300.0,0.0003564,2]
[423241528,1779976259000,-344.53139053,0.0003564,2]
[423241529,1779976259000,-865.81178355,0.0003564,2]
[423241537,1779976259000,-344.53139053,0.0003564,2]
[423241527,1779976259000,-1264.24574848,0.0003564,2]
[423241530,1779976259000,-1800.20391073,0.0003564,2]
[423241532,1779976259000,-609.04904691,0.0003564,2]
[423241534,1779976259000,-545.93395308,0.0003564,2]
[423241536,1779976259000,-1264.24574848,0.0003564,2]
[423241533,1779976259000,-531.52650177,0.0003564,2]
[423241535,1779976259000,-302.57029422,0.0003564,2]
[423241540,1779976259000,-408.40861275,0.0003564,2]
[423241546,1779976259000,-167.89454848,0.00035687,7]
[423241547,1779976259000,-167.89454849,0.00035687,30]
[423241539,1779976259000,-1800.20391073,0.0003564,2]
[423241548,1779976259000,-211.56,0.000357,30]
[423241550,1779976259000,-151.0,0.00035708,7]
[423241542,1779976259000,-804.700104,0.00035642,120]
[423241544,1779976259000,-777.7430355,0.00035642,120]
[423241549,1779976259000,-151.0,0.00035708,7]
[423241541,1779976259000,-500.0,0.00035642,120]
[423241543,1779976259000,-500.0,0.00035642,120]
[423241545,1779976259000,-1006.82,0.00035672,30]
[423241551,1779976259000,-164.063804,0.00035708,7]
[423241552,1779976259000,-171.0,0.00035791,30]
[423241553,1779976259000,-1079.0,0.00035791,30]
[423241554,1779976259000,-171.37026925,0.00035791,30]
[423241563,1779976259000,-2233.0,0.00035848,30]
[423241559,1779976259000,-476.1464,0.00035837,2]
[423241588,1779976259000,-150.0,0.0003623,7]
[423241614,1779976259000,-5000.0,0.00036761,10]
[423241600,1779976259000,-512.6216463,0.00036445,2]
[423241619,1779976259000,-167.89454849,0.00036872,30]
[423241618,1779976259000,-167.89454848,0.00036872,7]
[423241622,1779976259000,-201.6,0.00036975,7]
[423241627,1779976259000,-250.0,0.00037,2]
[423241629,1779976259000,-2000.0,0.000371,7]
[423241631,1779976259000,-194.71055026,0.000372,120]
[423241630,1779976259000,-150.0,0.00037105,7]
[423241636,1779976259000,-465.10414865,0.000374,2]
[423241639,1779976259000,-1948.67648164,0.000374,2]
[423241638,1779976259000,-200.0,0.000374,14]
[423241637,1779976259000,-311.02235487,0.000374,2]
[423241632,1779976259000,-512.6216463,0.00037275,2]
[423241633,1779976259000,-152.0,0.00037336,6]
[423241634,1779976259000,-512.6216463,0.00037372,2]
[423241635,1779976259000,-251.24370789,0.000374,2]
[423241641,1779976259000,-512.6216463,0.0003747,2]
[423241651,1779976259000,-273288.28691651,0.000375,120]
[423241640,1779976259000,-245.5193561,0.00037449,2]
[423241642,1779976259000,-150.0,0.00037479,7]
[423241643,1779976259000,-150.0,0.00037479,7]
[423241644,1779976259000,-150.0,0.00037479,7]
[423241645,1779976259000,-150.0,0.00037479,7]
[423241646,1779976259000,-150.0,0.00037479,7]
[423241647,1779976259000,-150.0,0.00037479,7]
[423241648,1779976259000,-151.0,0.00037497,14]
[423241649,1779976259000,-719.65219289,0.000375,31]
[423241650,1779976259000,-87172.12275034,0.000375,7]
[423241617,1779976259000,-5000.0,0.00036822,10]
[423241620,1779976259000,-150.0,0.0003688,2]
[423241628,1779976259000,-577.88,0.000371,14]
[423241621,1779976259000,-1225.0,0.00036954,2]
[423241589,1779976259000,-2532.64,0.00036237,10]
[423241601,1779976259000,-5000.0,0.00036465,10]
[423241591,1779976259000,-330.0,0.00036294,40]
[423241592,1779976259000,-1253.93488866,0.00036305,2]
[423241593,1779976259000,-5000.0,0.00036309,10]
[423241624,1779976259000,-5000.0,0.00036988,10]
[423241595,1779976259000,-2508.86,0.0003635,10]
[423241597,1779976259000,-2506.78,0.0003638,10]
[423241598,1779976259000,-2506.79,0.00036407,10]
[423241599,1779976259000,-5000.0,0.0003641,10]
[423241596,1779976259000,-150.0,0.00036355,7]
[423241613,1779976259000,-69759.0064,0.00036742,30]
[423241602,1779976259000,-2513.81,0.00036494,10]
[423241603,1779976259000,-63888.72515264,0.000365,10]
[423241594,1779976259000,-1560.15843748,0.00036326,2]
[423241606,1779976259000,-150.0,0.00036542,7]
[423241604,1779976259000,-1232.45,0.000365,120]
[423241623,1779976259000,-183.56,0.00036975,7]
[423241616,1779976259000,-11819.76,0.00036786,10]
[423241625,1779976259000,-100000.0,0.00037,30]
[423241626,1779976259000,-2000.0,0.00037,60]
[423241615,1779976259000,-25000.0,0.00036784,10]
[423241612,1779976259000,-476.1464,0.00036733,2]
[423241590,1779976259000,-5000.0,0.00036274,10]
[423241608,1779976259000,-512.6216463,0.00036655,2]
[423241610,1779976259000,-5000.0,0.00036673,10]
[423241605,1779976259000,-5000.0,0.00036509,10]
[423241607,1779976259000,-2513.81,0.00036617,10]
[423241609,1779976259000,-2563.87,0.00036666,10]
[423241611,1779976259000,-150.0,0.0003673,7]
[423241652,1779976260000,-143693.68547406,0.000375,120]
[423241659,1779976260000,-82531.55141502,0.000375,120]
[423241657,1779976260000,-2236.6661482,0.000375,120]
[423241658,1779976260000,-5641.01932721,0.000375,120]
[423241653,1779976260000,-1359.71344481,0.000375,120]
[423241654,1779976260000,-1929.875,0.000375,120]
[423241655,1779976260000,-6821.09059168,0.000375,120]
[423241660,1779976260000,-61038.59553013,0.000375,120]
[423241663,1779976260000,-501.03845915,0.000375,120]
[423241661,1779976260000,-419.787239,0.000375,120]
[423241666,1779976260000,-221.0,0.00021,2]
[423241662,1779976260000,-345.0,0.000375,120]
[423241667,1779976260000,-221.0,0.00022,2]
[423241664,1779976260000,-235641.82885262,0.000375,120]
[423241668,1779976260000,-2311.77262565,0.000375,120]
[423241669,1779976260000,-533.09299999,0.000375,120]
[423241656,1779976260000,-12249.61703868,0.000375,120]
[423241665,1779976260000,-286.28539746,0.000375,120]
[423241672,1779976617000,-151.60210176,0.00013476,2]
[423241673,1779976663000,-420.0,0.0001355,2]
[423241674,1779976716000,-150.0,0.00013572,2]
[423241675,1779976769000,-500.0,0.00013572,2]
[423241676,1779976822000,-827.341249,0.00013556,2]
[423241677,1779976831000,163.32,8.087e-05,2]
[423241678,1779976876000,-300.0,0.0001357,2]
[423241680,1779976929000,-1200.0,0.00013571,2]
[423241685,1779976982000,-476.01388394,0.0001357,2]
[423241689,1779977036000,-300.0,0.00013569,2]
[423241691,1779977089000,-162.44917431,0.0001347,2]
[423241692,1779977243000,-190.21335167,0.00013568,2]
[423241693,1779977245000,-1009.78664833,0.00013568,2]
[423241694,1779977245000,-150.0,0.00013568,2]
[423241695,1779977245000,-240.56351546,0.00013575,2]
[423241696,1779977286000,-2236.6661482,0.00013575,2]
[423241697,1779977307000,-2640.07329951,0.00013575,2]
[423241698,1779977360000,-500.0,0.00013468,2]
[423241699,1779977405000,-500.3267045,0.00013575,2]
[423241700,1779977425000,-1090.0413457,0.000135,2]
[423241701,1779977425000,-300.0,0.00013574,2]
[423241702,1779977425000,-1200.0,0.00013574,2]
[423241703,1779977425000,-500.0,0.00013575,2]
[423241704,1779977425000,-500.0,0.00013575,2]
[423241705,1779977425000,-500.0,0.00013575,2]
[423241706,1779977425000,-500.0,0.00013575,2]
[423241707,1779977425000,-500.0,0.00013575,2]
[423241708,1779977425000,-500.0,0.00013575,2]
[423241710,1779977425000,-500.0,0.00013575,2]
[423241709,1779977425000,-500.0,0.00013575,2]
[423241723,1779977426000,-500.0,0.00013575,2]
[423241724,1779977426000,-500.0,0.00013575,2]
[423241722,1779977426000,-500.0,0.00013575,2]
[423241721,1779977426000,-500.0,0.00013575,2]
[423241720,1779977426000,-500.0,0.00013575,2]
[423241719,1779977426000,-500.0,0.00013575,2]
[423241717,1779977426000,-500.0,0.00013575,2]
[423241726,1779977426000,-500.0,0.00013575,2]
[423241715,1779977426000,-500.0,0.00013575,2]
[423241716,1779977426000,-500.0,0.00013575,2]
[423241714,1779977426000,-500.0,0.00013575,2]
[423241713,1779977426000,-553.70845394,0.00013575,2]
[423241712,1779977426000,-500.0,0.00013575,2]
[423241711,1779977426000,-500.0,0.00013575,2]
[423241718,1779977426000,-500.0,0.00013575,2]
[423241725,1779977426000,-500.0,0.00013575,2]
[423241731,1779977426000,-500.0,0.00013575,2]
[423241728,1779977426000,-500.0,0.00013575,2]
[423241727,1779977426000,-500.0,0.00013575,2]
[423241743,1779977426000,-162.44917432,0.00013598,2]
[423241742,1779977426000,-23072.3682,0.00013576,2]
[423241741,1779977426000,-317.94915496,0.00013575,2]
[423241739,1779977426000,-500.0,0.00013575,2]
[423241738,1779977426000,-500.0,0.00013575,2]
[423241737,1779977426000,-500.0,0.00013575,2]
[423241740,1779977426000,-500.0,0.00013575,2]
[423241735,1779977426000,-450.0,0.00013575,2]
[423241733,1779977426000,-500.0,0.00013575,2]
[423241734,1779977426000,-500.0,0.00013575,2]
[423241732,1779977426000,-500.0,0.00013575,2]
[423241730,1779977426000,-500.0,0.00013575,2]
[423241729,1779977426000,-500.0,0.00013575,2]
[423241736,1779977426000,-500.0,0.00013575,2]
[423241753,1779977427000,-500.0,0.00013699,2]
[423241760,1779977427000,-500.0,0.00013699,2]
[423241758,1779977427000,-500.0,0.00013699,2]
[423241759,1779977427000,-500.0,0.00013699,2]
[423241757,1779977427000,-500.0,0.00013699,2]
[423241755,1779977427000,-500.0,0.00013699,2]
[423241754,1779977427000,-500.0,0.00013699,2]
[423241750,1779977427000,-500.0,0.00013699,2]
[423241745,1779977427000,-500.0,0.00013698,2]
[423241751,1779977427000,-500.0,0.00013699,2]
[423241749,1779977427000,-500.0,0.00013699,2]
[423241748,1779977427000,-500.0,0.00013699,2]
[423241746,1779977427000,-187.30003663,0.00013699,2]
[423241747,1779977427000,-500.0,0.00013699,2]
[423241744,1779977427000,-500.0,0.00013698,2]
[423241762,1779977427000,-500.0,0.00013699,2]
[423241752,1779977427000,-500.0,0.00013699,2]
[423241764,1779977427000,-310.0734069,0.00013699,2]
[423241756,1779977427000,-500.0,0.00013699,2]
[423241763,1779977427000,-500.0,0.00013699,2]
[423241761,1779977427000,-500.0,0.00013699,2]
[423241780,1779977427000,-500.0,0.00013699,2]
[423241778,1779977427000,-500.0,0.00013699,2]
[423241776,1779977427000,-500.0,0.00013699,2]
[423241779,1779977427000,-500.0,0.00013699,2]
[423241777,1779977427000,-500.0,0.00013699,2]
[423241774,1779977427000,-500.0,0.00013699,2]
[423241773,1779977427000,-500.0,0.00013699,2]
[423241775,1779977427000,-500.0,0.00013699,2]
[423241772,1779977427000,-500.0,0.00013699,2]
[423241770,1779977427000,-500.0,0.00013699,2]
[423241769,1779977427000,-500.0,0.00013699,2]
[423241781,1779977427000,-600.0,0.00013699,2]
[423241768,1779977427000,-500.0,0.00013699,2]
[423241766,1779977427000,-500.0,0.00013699,2]
[423241767,1779977427000,-500.0,0.00013699,2]
[423241765,1779977427000,-500.0,0.00013699,2]
[423241771,1779977427000,-500.0,0.00013699,2]
[423241786,1779977428000,-25000.0,0.00014513,3]
[423241782,1779977428000,-150.0,0.0001371,2]
[423241783,1779977428000,-215.50460005,0.00013754,2]
[423241785,1779977428000,-568.23459069,0.00014512,2]
[423241784,1779977428000,-188.0,0.00013845,2]
[423241787,1779977428000,-420.0,0.00014878,2]
[423241788,1779977428000,-150.0,0.00014924,2]
[423241790,1779977428000,-216.68559702,0.00014925,2]
[423241789,1779977428000,-196.12610297,0.00014925,2]
[423241793,1779977428000,-4246.39275178,0.000153,2]
[423241792,1779977428000,-162.44917431,0.000152,2]
[423241795,1779977428000,-60700.74454691,0.000154,2]
[423241794,1779977428000,-3773.4138,0.000153,2]
[423241796,1779977428000,-2602.02798153,0.000154,2]
[423241797,1779977428000,-4246.39275178,0.000155,2]
[423241791,1779977428000,-200.0,0.00015,2]
[423241798,1779977429000,215.50460005,0.00013765,2]
[423241809,1779977434000,-255.0,0.00016043,2]
[423241806,1779977434000,-4246.39275178,0.000158,2]
[423241815,1779977434000,-2048.39,0.00016221,2]
[423241805,1779977434000,-162.28,0.00015649,2]
[423241828,1779977434000,-1543.28483447,0.00018,2]
[423241823,1779977434000,-900.0,0.00017412,2]
[423241830,1779977434000,-2000.0,0.000181,2]
[423241813,1779977434000,-275.13,0.00016174,2]
[423241817,1779977434000,-4246.39275178,0.000164,2]
[423241825,1779977434000,-2602.0279815,0.00017844,2]
[423241803,1779977434000,-200.0,0.00015501,2]
[423241831,1779977434000,-1936.415675,0.000182,2]
[423241821,1779977434000,-168.13,0.00016712,2]
[423241818,1779977434000,-771.5,0.00016438,2]
[423241810,1779977434000,-216.74,0.0001609,3]
[423241822,1779977434000,-433.0,0.00017252,2]
[423241804,1779977434000,-4246.39275178,0.000156,2]
[423241816,1779977434000,-587.0,0.00016306,2]
[423241814,1779977434000,-4246.39275178,0.000162,2]
[423241807,1779977434000,-4246.39275178,0.000159,2]
[423241826,1779977434000,-420.0,0.00017872,2]
[423241827,1779977434000,-1936.415675,0.00018,2]
[423241820,1779977434000,-4246.39275178,0.000167,2]
[423241829,1779977434000,-6693.1284,0.000181,2]
[423241824,1779977434000,-670.94,0.00017702,2]
[423241819,1779977434000,-4246.39275178,0.000166,2]
[423241812,1779977434000,-2500.0,0.00016121,2]
[423241808,1779977434000,-215.50460005,0.00016,3]
[423241811,1779977434000,-4246.39275178,0.000161,2]
[423241832,1779977434000,-1543.28483447,0.000182,2]
[423241877,1779977435000,-771.5,0.00020381,2]
[423241862,1779977435000,-1223.2453986,0.00019239,2]
[423241850,1779977435000,-299.99,0.00018533,4]
[423241923,1779977435000,-162.28,0.00023473,2]
[423241909,1779977435000,-602.99895168,0.00022407,2]
[423241921,1779977435000,-688.0,0.00023,2]
[423241886,1779977435000,-151.0,0.00021288,2]
[423241940,1779977435000,-932.0,0.00024058,2]
[423241880,1779977435000,-539.0,0.00021,2]
[423241914,1779977435000,-2602.0279815,0.00022733,2]
[423241840,1779977435000,-500.0,0.00018512,2]
[423241934,1779977435000,-688.0,0.00024,2]
[423241848,1779977435000,-3773.05051756,0.00018533,2]
[423241869,1779977435000,-1116.0,0.0002,2]
[423241876,1779977435000,-2602.0279815,0.00020289,2]
[423241889,1779977435000,-151.0,0.00021288,2]
[423241904,1779977435000,-688.0,0.00022,2]
[423241847,1779977435000,-704.83205787,0.00018533,2]
[423241931,1779977435000,-194.0,0.00024,2]
[423241936,1779977435000,-1356.0,0.00024056,2]
[423241859,1779977435000,-1543.28483447,0.000187,2]
[423241860,1779977435000,-900.0,0.00018782,2]
[423241866,1779977435000,-500.0,0.00019338,2]
[423241882,1779977435000,-688.0,0.00021,2]
[423241851,1779977435000,-2773.63,0.00018533,2]
[423241944,1779977435000,-771.5,0.00024324,2]
[423241935,1779977435000,-542.0,0.00024,2]
[423241927,1779977435000,-200.0,0.00023652,2]
[423241887,1779977435000,-151.0,0.00021288,2]
[423241833,1779977435000,-176.23,0.00018356,2]
[423241884,1779977435000,-151.0,0.00021288,2]
[423241898,1779977435000,-1223.24539854,0.00021833,2]
[423241919,1779977435000,-539.0,0.00023,2]
[423241835,1779977435000,-1543.28483447,0.000184,2]
[423241868,1779977435000,-1162.0,0.00019924,2]
[423241896,1779977435000,-151.0,0.00021288,2]
[423241942,1779977435000,-200.0,0.00024069,2]
[423241941,1779977435000,-6064.0,0.00024058,2]
[423241834,1779977435000,-1936.415675,0.000184,2]
[423241837,1779977435000,-844.3,0.00018431,2]
[423241853,1779977435000,-53891.07,0.00018533,2]
[423241864,1779977435000,-500.0,0.00019338,2]
[423241870,1779977435000,-194.0,0.0002,2]
[423241878,1779977435000,-1116.0,0.00021,2]
[423241893,1779977435000,-151.0,0.00021288,2]
[423241894,1779977435000,-151.0,0.00021288,2]
[423241891,1779977435000,-151.0,0.00021288,2]
[423241933,1779977435000,-209.0,0.00024,2]
[423241839,1779977435000,-1543.28483447,0.000185,2]
[423241843,1779977435000,-353.138314,0.00018533,2]
[423241885,1779977435000,-151.0,0.00021288,2]
[423241900,1779977435000,-1116.0,0.00022,2]
[423241908,1779977435000,-602.99895169,0.00022407,2]
[423241939,1779977435000,-1225.0,0.00024058,2]
[423241892,1779977435000,-151.0,0.00021288,2]
[423241937,1779977435000,-928.0,0.00024056,2]
[423241906,1779977435000,-200.0,0.0002207,2]
[423241881,1779977435000,-209.0,0.00021,2]
[423241895,1779977435000,-151.0,0.00021288,2]
[423241888,1779977435000,-151.0,0.00021288,2]
[423241890,1779977435000,-151.0,0.00021288,2]
[423241903,1779977435000,-209.0,0.00022,2]
[423241911,1779977435000,-1096.42,0.00022466,2]
[423241910,1779977435000,-602.99895168,0.00022407,2]
[423241920,1779977435000,-209.0,0.00023,2]
[423241922,1779977435000,-542.0,0.00023,2]
[423241948,1779977435000,-1000.0,0.00024658,2]
[423241842,1779977435000,-4890.9014492,0.00018533,2]
[423241863,1779977435000,-500.0,0.00019338,2]
[423241905,1779977435000,-542.0,0.00022,2]
[423241879,1779977435000,-194.0,0.00021,2]
[423241902,1779977435000,-539.0,0.00022,2]
[423241924,1779977435000,-1511.71,0.00023555,2]
[423241872,1779977435000,-209.0,0.0002,2]
[423241875,1779977435000,-542.0,0.0002,2]
[423241883,1779977435000,-542.0,0.00021,2]
[423241916,1779977435000,-250.0,0.00022893,2]
[423241932,1779977435000,-539.0,0.00024,2]
[423241947,1779977435000,-172.39,0.00024658,2]
[423241912,1779977435000,-2099.32,0.00022466,2]
[423241945,1779977435000,-1223.24539854,0.00024428,2]
[423241901,1779977435000,-194.0,0.00022,2]
[423241867,1779977435000,-162.28,0.00019561,2]
[423241855,1779977435000,-150.99,0.00018533,2]
[423241836,1779977435000,-771.5,0.0001841,2]
[423241938,1779977435000,-525.0,0.00024058,2]
[423241917,1779977435000,-1116.0,0.00023,2]
[423241852,1779977435000,-5739.82,0.00018533,2]
[423241946,1779977435000,-200.0,0.00024443,2]
[423241846,1779977435000,-278.06766137,0.00018533,2]
[423241838,1779977435000,-1936.415675,0.000185,2]
[423241849,1779977435000,-9999.99,0.00018533,2]
[423241857,1779977435000,-736.0,0.00018536,2]
[423241861,1779977435000,-162.1,0.00018875,2]
[423241874,1779977435000,-4882.05,0.0002,2]
[423241899,1779977435000,-5000.0,0.00021918,2]
[423241915,1779977435000,-200.0,0.00022861,2]
[423241925,1779977435000,-1800.0,0.00023556,2]
[423241928,1779977435000,-200.0,0.00023808,2]
[423241926,1779977435000,-600.0,0.00023556,7]
[423241930,1779977435000,-1116.0,0.00024,2]
[423241858,1779977435000,-1936.415675,0.000187,2]
[423241929,1779977435000,-200.0,0.00023919,2]
[423241918,1779977435000,-194.0,0.00023,2]
[423241873,1779977435000,-688.0,0.0002,2]
[423241871,1779977435000,-539.0,0.0002,2]
[423241907,1779977435000,-771.5,0.00022353,2]
[423241943,1779977435000,-344.78,0.00024081,2]